bitfinex/quotes_ETHUSD_20241216
["timestamp","ask_amount","ask_price","bid_price","bid_amount"]
[1734356931438,2.88500304,3893.9,3892.1,0.764]
[1734356931588,2.5683,3893.7,3892.1,0.764]
[1734356931787,2.5683,3893.7,3892.5,0.7657]
[1734356932839,2.56812,3893.9,3892.5,0.7657]
[1734356932994,3.124932,3893.9,3892.5,0.7657]
[1734356933194,3.124932,3893.9,3892.6,0.51378]
[1734356933416,3.124932,3893.9,3892.5,0.7657]
[1734356933417,2.5682,3893.8,3892.5,0.7657]
[1734356933628,3.44181504,3893.9,3892.5,0.7657]
[1734356934329,2.56836,3893.6,3892.5,0.7657]
[1734356934506,3.1693775,3893.6,3892.5,0.7657]
[1734356934903,3.1693775,3893.6,3892.6,0.51379]
[1734356934904,0.6010175,3893.6,3892.6,0.51379]
[1734356935106,2.56838,3893.5,3892.5,0.7657]
[1734356935339,2.56846,3893.4,3892.5,0.7657]
[1734356935836,0.31694775,3893.4,3892.5,0.7657]
[1734356935991,2.56865,3893.1,3892.5,0.7657]
[1734356936192,2.88500304,3893.5,3892.5,0.7657]
[1734356936387,2.56858,3893.2,3892.5,0.7657]
[1734356937205,2.5687,3893.1,3892.5,0.7657]
[1734356938507,2.56848,3893.4,3892.5,0.7657]
[1734356939211,0.6010175,3893.6,3892.5,0.7657]
[1734356939212,3.1693375,3893.6,3892.5,0.7657]
[1734356939413,3.44181504,3893.9,3892.5,0.7657]
[1734356939414,2.56819,3893.8,3892.5,0.7657]
[1734356939661,2.56819,3893.8,3892.8,0.794]
[1734356939935,2.56819,3893.8,3892.0,0.12965552]
[1734356939936,2.56804,3894.1,3892.9,0.51375]
[1734356940135,2.56804,3894.1,3893.0,1.30774]
[1734356940295,2.56804,3894.1,3893.0,1.438514]
[1734356940743,2.88500304,3894.3,3893.0,0.924774]
[1734356940932,2.56806,3894.0,3893.0,0.924774]
[1734356941593,2.56792,3894.2,3893.0,0.924774]
[1734356941940,2.88500304,3894.3,3893.3,0.7733]
[1734356942096,0.6247903,3894.3,3893.3,0.7733]
[1734356942437,2.5678,3894.4,3893.0,0.130774]
[1734356942438,0.7876,3895.0,3893.0,0.130774]
[1734356942648,2.56765,3894.6,3893.5,0.7733]
[1734356942936,2.56773,3894.5,3893.5,0.7733]
[1734356943662,2.5676,3894.7,3893.5,0.7733]
[1734356943816,2.56771,3894.6,3893.5,1.28697]
[1734356944001,2.56774,3894.5,3893.5,1.28697]
[1734356945082,0.60537215,3894.7,3893.5,1.28697]
[1734356945239,2.56767,3894.6,3893.5,1.28697]
[1734356945447,5.56772,3894.5,3893.5,1.28697]
[1734356946357,0.31730422,3894.6,3893.5,1.28697]
[1734356946542,2.88500304,3895.1,3892.6,0.51378]
[1734356946543,0.7507,3895.4,3893.6,0.83568209]
[1734356946743,2.56729,3895.2,3894.1,1.05689]
[1734356946944,3.69700304,3895.9,3894.1,0.8001]
[1734356947142,6.26384304,3895.9,3894.3,0.25678]
[1734356947372,6.26384304,3895.9,3893.2,0.28252615]
[1734356947373,2.88500304,3895.4,3893.6,0.8001]
[1734356947616,2.88500304,3895.4,3893.9,0.819]
[1734356947742,2.56731,3895.2,3893.9,0.819]
[1734356947946,2.56731,3895.2,3894.1,0.25679]
[1734356948145,2.56711,3895.5,3894.4,0.25677]
[1734356948386,2.88500304,3896.2,3894.8,1.07574]
[1734356948689,2.88500304,3896.2,3894.9,0.819]
[1734356948842,0.7513,3896.3,3894.9,0.819]
[1734356949177,3.31784,3896.3,3894.9,0.819]
[1734356949889,2.56679,3896.0,3894.9,0.819]
[1734356950096,2.56679,3896.0,3894.9,1.07574]
[1734356950244,0.7695,3896.8,3895.2,0.25672]
[1734356950546,0.7695,3896.8,3895.3,0.805]
[1734356950547,0.55662,3896.7,3895.3,0.805]
[1734356950745,2.56648,3896.4,3895.3,1.06171]
[1734356951844,0.7695,3896.8,3895.3,0.805]
[1734356952045,2.56661,3896.2,3895.3,0.805]
[1734356952463,0.7695,3896.8,3895.3,0.805]
[1734356952668,2.56664,3896.2,3895.3,0.805]
[1734356953284,2.56648,3896.4,3895.3,0.805]
[1734356953577,2.56655,3896.3,3895.3,0.805]
[1734356954405,0.633561,3896.7,3895.3,1.06171]
[1734356954406,2.56641,3896.5,3895.3,1.06171]
[1734356954605,2.56641,3896.5,3895.4,0.8004]
[1734356954776,2.9633571,3896.5,3895.4,0.8004]
[1734356955178,0.3969471,3896.5,3895.4,0.8004]
[1734356955392,2.56654,3896.3,3895.4,0.8004]
[1734356956192,3.51856404,3896.7,3895.4,0.8004]
[1734356956491,2.56681,3895.9,3895.4,0.8004]
[1734356956697,2.56633,3896.6,3895.4,0.8004]
[1734356956894,2.56693,3895.7,3895.4,0.8004]
[1734356957469,0.7755,3896.0,3894.2,0.25678]
[1734356957711,0.7755,3896.0,3894.4,0.8018]
[1734356957712,2.56718,3895.4,3894.4,0.8018]
[1734356958635,0.7755,3896.0,3894.4,0.8018]
[1734356958910,2.56722,3895.3,3894.4,0.8018]
[1734356960308,2.56686,3895.9,3894.4,0.8018]
[1734356960309,2.56727,3895.2,3894.4,0.8018]
[1734356961445,2.56714,3895.4,3894.4,0.8018]
[1734356963659,2.5672,3895.3,3894.4,0.8018]
[1734356964018,2.56693,3895.7,3894.4,0.8018]
[1734356964245,2.56733,3895.1,3894.4,0.8018]
[1734356964431,2.823713,3895.6,3894.4,0.8018]
[1734356964432,2.56721,3895.3,3894.4,0.8018]
[1734356965776,2.56706,3895.5,3894.4,0.8018]
[1734356965916,0.256693,3895.6,3894.4,0.8018]
[1734356965917,2.56726,3895.3,3894.4,0.8018]
[1734356966121,0.2823953,3895.3,3894.4,0.8018]
[1734356966320,2.56772,3894.5,3893.4,0.8276]
[1734356966568,2.56779,3894.4,3893.4,0.8276]
[1734356966738,2.56821,3893.8,3893.4,0.8276]
[1734356966934,2.46587668,3894.7,3893.4,0.8276]
[1734356967151,2.56772,3894.5,3893.4,0.8276]
[1734356967351,2.56831,3893.6,3893.4,0.8276]
[1734356969637,0.7764,3894.2,3893.4,0.8276]
[1734356969841,2.56838,3893.5,3893.4,0.8276]
[1734356970565,2.56838,3893.5,3893.0,0.7637]
[1734356970566,2.56869,3893.1,3893.0,0.7637]
[1734356971676,0.7764,3894.2,3893.0,0.7637]
[1734356971846,2.56843,3893.5,3893.0,0.7637]
[1734356972180,2.56834,3893.6,3893.0,0.7637]
[1734356973637,2.56798,3894.1,3893.0,0.7637]
[1734356973638,2.56826,3893.7,3893.0,0.7637]
[1734356974074,2.56833,3893.6,3893.0,0.7637]
[1734356975776,2.56798,3894.1,3893.0,0.7637]
[1734356975980,2.56819,3893.8,3893.0,0.7637]
[1734356977167,2.56806,3894.0,3893.0,0.7637]
[1734356977340,0.7764,3894.9,3893.0,1.02056]
[1734356977542,1.16673173,3894.9,3893.5,0.25683]
[1734356977744,2.56766,3894.6,3893.7,0.7719]
[1734356978482,2.5678,3894.4,3893.7,0.7719]
[1734356979581,2.56785,3894.4,3893.7,0.7719]
[1734356981139,2.56787,3894.3,3893.7,0.7719]
[1734356982319,2.56811,3894.0,3893.7,0.7719]
[1734356982491,2.56789,3894.3,3893.7,0.7719]
[1734356982650,2.56759,3894.7,3893.7,0.7719]
[1734356982851,2.56771,3894.6,3893.7,0.7719]
[1734356983047,0.7721,3895.2,3893.7,0.7719]
[1734356983253,2.5678,3894.4,3893.7,0.7719]
[1734356983760,2.56766,3894.6,3893.7,0.7719]
[1734356984059,2.56773,3894.5,3893.7,0.7719]
[1734356984494,0.33396,3894.9,3893.7,0.7719]
[1734356984658,0.7721,3895.2,3893.7,0.7719]
[1734356985259,2.56771,3894.6,3893.7,0.8113919]
[1734356987806,2.56732,3895.1,3893.7,0.8113919]
[1734356988194,2.56757,3894.8,3893.7,0.8113919]
[1734356988379,2.56757,3894.8,3893.8,0.7704]
[1734356989002,2.56732,3895.1,3893.8,0.7704]
[1734356989210,2.56764,3894.7,3893.8,0.7704]
[1734356989365,2.56785,3894.3,3893.8,0.8098919]
[1734356989565,2.56774,3894.5,3893.8,0.8098919]
[1734356990678,2.56782,3894.4,3893.8,0.8098919]
[1734356992173,2.56787,3894.3,3893.8,0.8098919]
[1734356995033,2.56752,3894.8,3893.8,0.8098919]
[1734356995235,2.56811,3893.9,3893.8,0.0394919]
[1734357003151,2.56811,3893.9,3893.8,1.9e-06]
[1734357003453,3.34031,3893.9,3893.8,1.9e-06]
[1734357004012,8.80705384,3893.9,3893.8,1.9e-06]
[1734357004256,9.35705384,3893.9,3893.8,1.9e-06]
[1734357004554,12.00086105,3893.9,3893.8,1.9e-06]
[1734357004737,13.77574912,3893.9,3893.8,1.9e-06]
[1734357004905,13.77574912,3893.9,3891.9,0.7807]
[1734357004906,0.8057,3893.0,3891.9,0.7807]
[1734357005254,2.56937,3892.0,3891.9,0.7807]
[1734357005749,2.56889,3892.8,3891.2,1.07338303]
[1734357005750,2.56964,3891.6,3891.2,0.7568]
[1734357005909,2.5697,3891.5,3891.2,0.7568]
[1734357006745,5.03598384,3892.2,3891.2,0.7568]
[1734357006955,2.56983,3891.3,3891.2,0.7568]
[1734357007321,2.5699,3891.2,3890.9,0.7568]
[1734357007534,2.56962,3891.7,3890.9,0.7568]
[1734357007740,2.56937,3892.0,3890.9,0.7568]
[1734357008254,2.56995,3891.2,3890.9,0.7568]
[1734357008421,2.56972,3891.5,3890.9,0.7568]
[1734357008953,2.56986,3891.3,3890.9,0.7568]
[1734357009251,2.57003,3891.0,3890.8,0.40084624]
[1734357009610,0.7542,3891.6,3890.8,0.40084624]
[1734357009611,2.57009,3890.9,3890.8,0.40084624]
[1734357009857,2.56992,3891.2,3890.8,0.40084624]
[1734357010556,2.5606468,3891.2,3890.8,0.40084624]
[1734357011550,2.56975,3891.5,3890.8,0.40084624]
[1734357011709,2.56996,3891.1,3890.8,0.40084624]
[1734357012063,0.7542,3891.6,3890.8,0.40084624]
[1734357012064,2.57009,3890.9,3890.8,0.40084624]
[1734357012426,2.46674384,3891.4,3890.3,0.1616021]
[1734357012427,2.57026,3890.7,3890.3,0.1616021]
[1734357012876,2.57027,3890.7,3890.3,0.1616021]
[1734357013836,2.56995,3891.2,3890.3,0.1616021]
[1734357013837,0.8161,3890.9,3890.3,0.1616021]
[1734357014036,0.32828438,3890.8,3890.3,0.1616021]
[1734357014286,2.57042,3890.4,3890.3,0.1616021]
[1734357015151,2.57033,3890.6,3890.3,0.1616021]
[1734357015671,0.7586,3891.2,3890.3,0.1616021]
[1734357015866,2.5702,3890.8,3890.3,0.1616021]
[1734357016255,0.7586,3891.2,3890.3,0.1616021]
[1734357016454,2.57021,3890.8,3890.3,0.1616021]
[1734357017086,2.57003,3891.0,3890.3,0.1616021]
[1734357017290,2.56975,3891.5,3890.3,0.1616021]
[1734357017450,0.256975,3891.4,3890.3,0.1616021]
[1734357017657,2.5701,3890.9,3890.3,0.1616021]
[1734357018290,0.256975,3891.4,3890.3,0.1616021]
[1734357018446,2.57016,3890.9,3890.3,0.1616021]
[1734357019926,2.57001,3891.1,3890.3,0.1616021]
[1734357020398,2.5703,3890.6,3890.3,0.1616021]
[1734357020604,2.57042,3890.4,3890.3,0.1616021]
[1734357020953,3.34542,3890.4,3890.3,0.1616021]
[1734357022797,3.34542,3890.4,3888.7,0.7963]
[1734357022798,5.14112,3890.2,3888.7,0.7963]
[1734357022996,3.21874384,3889.8,3888.7,0.7963]
[1734357023206,2.57095,3889.6,3888.7,0.7963]
[1734357023498,2.57133,3889.1,3888.7,0.7963]
[1734357023706,2.57135,3889.0,3888.7,0.7963]
[1734357023869,2.57135,3889.0,3887.3,0.27284114]
[1734357023870,2.57156,3888.7,3888.0,0.7684]
[1734357024070,2.57128,3889.1,3888.0,0.7684]
[1734357024302,2.57155,3888.8,3888.0,0.7684]
[1734357024469,2.57128,3889.1,3888.0,0.7684]
[1734357024653,0.333778,3889.0,3888.0,0.7684]
[1734357024859,2.57169,3888.5,3888.0,0.7684]
[1734357026958,2.57188,3888.2,3887.1,0.7515]
[1734357027220,0.8062,3888.3,3887.1,0.7515]
[1734357027360,0.50383138,3888.5,3887.1,0.7515]
[1734357027560,0.333778,3889.0,3886.5,0.1616021]
[1734357027561,0.333778,3889.0,3887.3,2.46674384]
[1734357027784,0.333778,3889.0,3887.4,0.7515]
[1734357028074,0.8062,3889.1,3887.5,0.51446]
[1734357028276,2.57162,3888.6,3887.6,0.765]
[1734357028584,2.57135,3889.0,3887.6,0.765]
[1734357028785,0.337755,3888.9,3887.6,0.765]
[1734357029005,2.57168,3888.6,3887.6,0.765]
[1734357029208,0.337755,3888.9,3887.6,0.765]
[1734357029373,2.57169,3888.5,3887.6,0.765]
[1734357029560,0.337755,3888.9,3887.6,0.765]
[1734357029759,2.57191,3888.2,3887.6,0.765]
[1734357030503,2.5716,3888.7,3887.6,0.765]
[1734357030705,2.5717,3888.5,3887.6,0.765]
[1734357030913,2.8624955,3888.7,3887.6,0.765]
[1734357031080,0.2909355,3888.7,3887.6,0.765]
[1734357031592,0.337755,3888.9,3887.6,0.765]
[1734357031593,2.57195,3888.1,3887.6,0.765]
[1734357031803,0.337755,3888.9,3887.6,0.765]
[1734357032014,2.57168,3888.5,3887.6,0.765]
[1734357032381,2.57156,3888.7,3887.6,0.765]
[1734357032620,4.32337898,3889.5,3887.7,2.49246574]
[1734357032889,4.32337898,3889.5,3888.1,0.765]
[1734357032890,2.57125,3889.2,3888.1,0.765]
[1734357033090,2.57125,3889.2,3888.1,0.51438]
[1734357033275,2.57125,3889.2,3888.2,0.8189]
[1734357034032,2.70213012,3889.7,3888.2,1.33327]
[1734357034033,2.57108,3889.5,3888.2,1.33327]
[1734357034206,2.57113,3889.4,3888.3,0.8259]
[1734357034577,0.34589301,3889.6,3888.3,0.8259]
[1734357034578,0.34589301,3889.6,3888.5,0.8259]
[1734357034964,0.34589301,3889.6,3888.6,0.8259]
[1734357035480,2.57089,3889.7,3888.6,0.959923]
[1734357035980,0.826,3890.2,3888.8,0.8259]
[1734357036323,2.57061,3890.2,3888.9,0.51428]
[1734357036474,2.57066,3890.1,3889.0,0.8259]
[1734357036675,2.57066,3890.1,3889.0,0.959918]
[1734357037728,3.29274384,3890.8,3889.3,0.8259]
[1734357038220,2.57061,3890.2,3889.3,0.8259]
[1734357038741,2.57062,3890.1,3889.3,0.8259]
[1734357039493,3.29274384,3890.8,3889.4,0.134015]
[1734357039698,2.5705,3890.3,3889.4,0.134015]
[1734357040296,2.57038,3890.5,3889.5,0.8259]
[1734357040603,2.57043,3890.4,3889.5,0.8259]
[1734357040813,2.57043,3890.4,3889.4,0.134015]
[1734357040814,0.8148,3891.4,3889.6,0.02570811]
[1734357041016,2.56998,3891.1,3889.7,0.8089]
[1734357041180,2.56998,3891.1,3890.1,0.8089]
[1734357041381,2.57005,3891.0,3890.1,0.8089]
[1734357041739,0.257005,3891.0,3890.1,0.8089]
[1734357042035,2.5705,3890.3,3890.1,0.8089]
[1734357042735,2.57035,3890.6,3890.1,0.8089]
[1734357044605,2.57036,3890.5,3890.1,0.8089]
[1734357044816,2.57043,3890.4,3890.1,0.8089]
[1734357046333,0.7916,3891.0,3889.7,0.7569]
[1734357046334,3.36165,3891.0,3889.7,0.7569]
[1734357046533,2.57063,3890.1,3889.7,0.7569]
[1734357047047,2.5707,3890.0,3889.7,0.7569]
[1734357047408,2.57036,3890.5,3889.7,0.7569]
[1734357047654,2.57042,3890.4,3889.7,0.7569]
[1734357047945,0.336165,3890.9,3889.7,0.7569]
[1734357047946,2.57059,3890.2,3889.7,0.7569]
[1734357048147,2.57022,3890.8,3889.7,0.7569]
[1734357048148,0.61645788,3890.8,3889.7,0.7569]
[1734357048333,2.57038,3890.5,3889.7,0.7569]
[1734357048534,0.336165,3890.9,3889.7,0.7569]
[1734357048966,2.57062,3890.2,3889.7,0.7569]
[1734357049458,2.57044,3890.4,3889.7,0.7569]
[1734357049954,2.57049,3890.3,3889.7,0.7569]
[1734357051111,2.57069,3890.1,3889.7,0.7569]
[1734357052355,0.257049,3890.3,3889.7,0.7569]
[1734357052650,2.57021,3890.8,3889.7,0.7569]
[1734357053169,2.57049,3890.4,3889.7,0.7569]
[1734357053659,2.57049,3890.4,3889.4,2.46674384]
[1734357053660,2.57009,3891.0,3889.9,1.27224]
[1734357053818,2.57009,3891.0,3889.8,2.49245163]
[1734357053819,3.32213,3891.7,3890.0,0.51413]
[1734357054019,2.56991,3891.2,3890.1,0.7828]
[1734357054443,2.57005,3891.0,3890.1,0.7828]
[1734357057764,2.56985,3891.3,3890.2,0.51411]
[1734357057932,2.56985,3891.3,3890.3,0.778]
[1734357058855,1.29292543,3892.0,3890.3,0.778]
[1734357059051,2.56995,3891.2,3890.3,0.778]
[1734357059234,2.56978,3891.4,3890.3,0.778]
[1734357059441,2.56978,3891.4,3890.3,0.80370196]
[1734357059919,2.56978,3891.4,3890.5,0.7895]
[1734357060150,0.67596693,3891.9,3890.5,0.7895]
[1734357060359,2.56984,3891.3,3890.5,0.7895]
[1734357060570,0.7851,3892.0,3890.5,0.7895]
[1734357060571,2.57006,3891.0,3890.5,0.7895]
[1734357060732,2.57029,3890.6,3890.5,0.7895]
[1734357060930,2.57049,3890.4,3889.5,0.7627]
[1734357061954,2.57009,3890.9,3889.5,0.7627]
[1734357062180,2.57034,3890.6,3889.7,0.7692]
[1734357062576,0.7599,3891.2,3889.7,0.7692]
[1734357062732,2.57044,3890.4,3889.7,0.7692]
[1734357063267,2.5705,3890.3,3889.7,0.7692]
[1734357063578,3.3298,3891.2,3889.7,0.7692]
[1734357063579,0.7599,3891.2,3889.7,0.7692]
[1734357063873,2.57061,3890.2,3889.7,0.7692]
[1734357064032,2.57064,3890.1,3889.7,0.7692]
[1734357064231,2.57036,3890.5,3889.7,0.7692]
[1734357064433,2.57031,3890.6,3889.7,0.7692]
[1734357064769,2.827341,3890.6,3889.7,0.7692]
[1734357065175,2.57046,3890.4,3889.7,0.7692]
[1734357065822,2.57016,3890.9,3889.7,0.7692]
[1734357066029,2.57029,3890.7,3889.7,0.7692]
[1734357067486,2.5703,3890.6,3889.7,0.7692]
[1734357067783,2.57046,3890.4,3889.7,0.7692]
[1734357068075,0.8171,3891.4,3889.7,0.7692]
[1734357068076,2.57028,3890.7,3889.7,0.7692]
[1734357068380,2.57035,3890.6,3889.7,0.7692]
[1734357069561,2.57037,3890.5,3889.7,0.7692]
[1734357070943,2.57007,3891.0,3889.7,0.7692]
[1734357071156,2.57008,3891.0,3889.9,0.7571]
[1734357071385,2.57008,3891.0,3890.0,0.7828045]
[1734357071589,3.0,3891.4,3890.2,0.7571]
[1734357071757,2.5701,3890.9,3890.2,0.7571]
[1734357072145,2.57017,3890.8,3890.2,0.7571]
[1734357073100,2.56963,3891.6,3890.2,0.7571]
[1734357073281,2.56963,3891.6,3888.8,0.51429]
[1734357073282,2.5699,3891.2,3889.9,0.8183]
[1734357073479,2.57069,3890.0,3889.9,0.8183]
[1734357074422,0.7924,3890.6,3889.9,0.8183]
[1734357074423,3.36273,3890.6,3889.9,0.8183]
[1734357074782,0.7924,3890.6,3889.9,0.8183]
[1734357074982,2.57069,3890.0,3889.9,0.8183]
[1734357075246,2.57069,3890.0,3889.1,0.752]
[1734357075379,2.57069,3890.0,3889.2,0.32187438]
[1734357076288,2.57076,3889.9,3889.2,0.32187438]
[1734357076697,2.57063,3890.1,3889.1,0.752]
[1734357077509,2.57036,3890.5,3889.2,0.8109]
[1734357077719,2.57069,3890.0,3889.2,0.8109]
[1734357078126,2.57057,3890.2,3889.2,0.8109]
[1734357078340,2.57064,3890.1,3889.3,1.89498303]
[1734357078539,2.57064,3890.1,3889.4,0.54341646]
[1734357078744,2.57064,3890.1,3889.5,0.8216]
[1734357080132,2.5707,3890.0,3889.5,0.8216]
[1734357080446,2.57077,3889.9,3889.5,0.8216]
[1734357080605,4.18322231,3890.8,3889.5,0.8216]
[1734357080606,2.827907,3889.8,3889.5,0.8216]
[1734357080801,2.57083,3889.8,3889.5,0.8216]
[1734357082615,2.5707,3890.0,3889.5,0.8216]
[1734357083315,2.57076,3889.9,3889.5,0.8216]
[1734357084258,2.57083,3889.8,3889.5,0.8216]
[1734357085312,2.57053,3890.3,3889.5,0.8216]
[1734357085313,2.57071,3890.0,3889.5,0.8216]
[1734357085507,2.57053,3890.3,3889.5,0.8216]
[1734357085708,2.57078,3889.9,3889.5,0.8216]
[1734357086904,1.07537487,3890.7,3889.6,0.8085]
[1734357087104,2.57023,3890.7,3889.8,0.8085]
[1734357087311,2.57035,3890.6,3889.9,0.8085]
[1734357087644,2.57015,3890.9,3889.9,0.8085]
[1734357087645,2.57045,3890.4,3889.9,0.8085]
[1734357088150,2.57056,3890.2,3889.9,0.8085]
[1734357088650,2.57043,3890.4,3889.9,0.8085]
[1734357089053,2.57052,3890.3,3889.9,0.8085]
[1734357089940,2.57029,3890.6,3889.9,0.8085]
[1734357090146,2.57069,3890.0,3889.9,0.8085]
[1734357090934,2.57058,3890.2,3889.9,0.8085]
[1734357091108,2.57063,3890.1,3889.9,0.8085]
[1734357092247,1.1130305,3890.5,3889.9,0.8085]
[1734357092424,2.57069,3890.0,3889.9,0.8085]
[1734357096646,2.09248987,3890.8,3889.9,0.8085]
[1734357096849,2.57048,3890.4,3889.9,0.8085]
[1734357097069,2.57061,3890.2,3889.9,0.8085]
[1734357097592,2.57069,3890.0,3889.9,0.8085]
[1734357098537,0.7662,3890.5,3889.6,0.8102]
[1734357098742,2.57083,3889.8,3889.6,0.8102]
[1734357099473,2.57071,3890.0,3889.6,0.8102]
[1734357101186,2.57046,3890.4,3889.6,0.8102]
[1734357101483,2.57076,3889.9,3889.6,0.8102]
[1734357103581,2.904126,3890.4,3889.6,1.88192024]
[1734357103790,2.57067,3890.1,3889.6,1.88192024]
[1734357103983,2.5707,3890.0,3889.6,1.88192024]
[1734357104687,2.57076,3889.9,3889.6,1.88192024]
[1734357104861,2.57049,3890.3,3889.6,0.8102]
[1734357105058,2.57083,3889.8,3889.6,0.8102]
[1734357105263,2.57089,3889.7,3889.6,0.8102]
[1734357105461,2.57089,3889.7,3889.2,0.8123]
[1734357105661,2.57128,3889.1,3889.0,1.07172024]
[1734357105860,2.57128,3889.1,3888.9,0.8123]
[1734357106159,2.57095,3889.6,3888.7,1.07172024]
[1734357106349,0.44613249,3889.5,3888.6,1.88402024]
[1734357106563,2.5712,3889.3,3888.6,0.8123]
[1734357106907,2.57142,3888.9,3888.6,0.8123]
[1734357107964,2.5712,3889.3,3888.6,0.8123]
[1734357108164,2.57143,3888.9,3888.6,0.8123]
[1734357110967,2.5712,3889.3,3888.6,0.8123]
[1734357111292,2.57148,3888.8,3888.6,0.8123]
[1734357116520,2.57155,3888.7,3888.6,0.8123]
[1734357116718,0.8118,3889.1,3888.3,0.8095]
[1734357116921,2.57181,3888.4,3887.8,0.8095]
[1734357117120,2.57181,3888.4,3887.8,1.40505444]
[1734357117521,3.38311,3889.1,3887.8,1.40505444]
[1734357117719,3.38311,3889.1,3887.8,0.8095]
[1734357117720,2.57195,3888.1,3887.8,0.8095]
[1734357118388,2.57183,3888.3,3887.8,0.8095]
[1734357118631,2.57191,3888.2,3887.8,0.8095]
[1734357119188,2.57197,3888.1,3887.8,0.8095]
[1734357120344,2.57203,3888.0,3887.8,0.8095]
[1734357120494,2.57188,3888.3,3887.8,0.8095]
[1734357120693,3.3696,3889.4,3888.0,0.7687]
[1734357120916,2.57141,3889.0,3888.0,0.7687]
[1734357121100,2.57148,3888.9,3888.0,0.7687]
[1734357121606,2.57115,3889.3,3888.0,1.0259]
[1734357121792,2.57133,3889.1,3888.2,0.7909]
[1734357123035,2.57136,3889.0,3888.2,0.7909]
[1734357124132,2.57109,3889.4,3888.4,0.8007]
[1734357124789,2.57109,3889.4,3888.5,0.7501]
[1734357125890,2.46674384,3890.0,3888.5,0.7501]
[1734357126104,2.57144,3888.9,3888.5,0.7501]
[1734357126460,3.34163,3889.4,3887.7,1.60758036]
[1734357126461,2.57115,3889.3,3887.7,1.07172024]
[1734357126697,2.57115,3889.3,3887.5,1.86481036]
[1734357126698,2.57162,3888.6,3887.8,0.7507]
[1734357127395,2.57149,3888.8,3887.8,0.77641884]
[1734357127699,2.57133,3889.1,3887.8,0.7507]
[1734357127865,2.57142,3888.9,3888.0,0.7641]
[1734357128203,2.57157,3888.7,3888.0,0.7641]
[1734357128369,3.34164,3889.4,3888.0,0.7641]
[1734357128573,0.58083838,3889.3,3888.0,0.7641]
[1734357128771,2.57162,3888.6,3888.0,0.7641]
[1734357129389,0.58083838,3889.3,3888.0,0.7641]
[1734357130908,2.57095,3889.7,3888.2,2.46674384]
[1734357131082,2.571,3889.6,3888.4,0.25717]
[1734357131276,2.57098,3889.6,3888.5,0.7788]
[1734357131481,3.32379,3890.0,3888.5,0.7788]
[1734357131674,2.57106,3889.5,3888.5,0.7788]
[1734357132091,2.57116,3889.3,3888.5,0.7788]
[1734357132569,2.57082,3889.8,3888.5,0.7788]
[1734357132764,0.7531,3890.0,3888.6,0.55]
[1734357132968,0.44120649,3890.3,3888.5,0.02571364]
[1734357132969,2.57089,3889.7,3888.8,0.8235]
[1734357133804,2.96889252,3890.2,3888.8,0.8235]
[1734357133805,2.57099,3889.6,3888.8,0.8235]
[1734357134362,2.57069,3890.0,3888.8,0.8235]
[1734357134614,2.571,3889.6,3888.8,0.8235]
[1734357135215,5.14204,3889.5,3888.8,0.8235]
[1734357135425,0.809,3889.3,3888.0,0.7944]
[1734357135616,3.3802,3889.3,3888.0,0.7944]
[1734357136313,2.57122,3889.2,3888.0,0.7944]
[1734357136469,2.57162,3888.6,3888.0,0.7944]
[1734357136681,0.809,3889.3,3888.0,0.7944]
[1734357137021,3.54211871,3889.6,3887.5,0.8326]
[1734357137022,2.57198,3888.1,3887.5,0.8326]
[1734357138794,2.57167,3888.6,3887.5,0.8326]
[1734357139008,2.57195,3888.1,3887.5,0.8326]
[1734357139705,2.828837,3888.6,3887.5,0.8326]
[1734357140017,0.257167,3888.6,3887.5,0.8326]
[1734357140309,2.5718,3888.4,3887.5,0.8326]
[1734357140561,2.57195,3888.1,3887.5,0.8326]
[1734357141433,2.57195,3888.1,3887.5,1.02303202]
[1734357141633,2.57195,3888.1,3887.5,0.8326]
[1734357145841,0.8088,3889.0,3887.5,0.8326]
[1734357146042,2.57183,3888.3,3887.5,0.8326]
[1734357146365,2.57188,3888.2,3887.5,0.8326]
[1734357147472,2.57155,3888.7,3887.5,0.8326]
[1734357147657,2.5718,3888.4,3887.6,0.02572099]
[1734357147856,2.5718,3888.4,3887.7,0.8286]
[1734357148242,3.38019,3889.0,3887.7,0.8286]
[1734357148659,2.5717,3888.5,3887.7,0.8286]
[1734357151372,2.5717,3888.5,3887.7,1.90032024]
[1734357152164,2.57181,3888.4,3887.7,0.8286]
[1734357152678,2.56252846,3888.4,3887.7,0.8286]
[1734357153191,0.8088,3889.0,3887.7,0.8286]
[1734357153392,2.57158,3888.7,3887.7,1.90032024]
[1734357154449,2.57163,3888.6,3887.7,1.90032024]
[1734357156499,0.8138,3888.4,3887.7,0.8286]
[1734357156687,2.5719,3888.2,3887.7,0.8286]
[1734357156889,0.8138,3888.4,3887.7,0.8286]
[1734357157072,2.57181,3888.3,3887.7,0.8286]
[1734357160168,2.57191,3888.2,3887.7,0.8286]
[1734357160610,3.83829074,3888.4,3887.7,0.8286]
[1734357160780,2.57183,3888.3,3887.7,0.8286]
[1734357162521,2.57189,3888.2,3887.7,0.8286]
[1734357162693,2.57195,3888.1,3887.7,0.8286]
[1734357165433,1.14205736,3888.0,3887.3,0.8093]
[1734357165574,1.14205736,3888.0,3887.0,1.88102024]
[1734357165575,1.14205736,3887.4,3887.0,1.88102024]
[1734357165776,1.14205736,3887.4,3887.0,0.8093]
[1734357166088,2.57208,3888.0,3887.0,0.8093]
[1734357166287,0.45274074,3888.4,3887.2,0.8314]
[1734357166490,2.5719,3888.2,3887.2,0.8314]
[1734357166701,2.5719,3888.2,3887.4,1.07172024]
[1734357166906,2.5719,3888.2,3887.3,1.07172024]